{"text_format":"1","workbook":"xlsx","n_sheets":3,"sheets":["Karakterbog","Elevresume","Bedømmelseskriterier"],"not_rendered":{"charts":1,"images":1,"macros":1,"external_links":0,"defined_names":11,"comments":0,"pivot_tables":0},"unopened":[],"bounds":{"document_bytes":16777216,"sheet_cells":100000,"rows_first":2000,"rows_last":500,"rows_between":2000,"halvings":0,"cell_chars":16384,"cell_head_chars":4096},"cells_cut":0,"cells_raw":0,"read":"whole","date_system":"1900"}

{"sheet":"Karakterbog","index":0,"n_rows":8,"n_cols":9,"rows_kept":8,"cut":false,"hidden":false,"merged":[]}
[null,"Klassenavn"]
[null,"Lærer",null,null,null,"Opgavedato ","2011-01-18","2011-01-25","2011-02-01"]
[null,null,null,null,"Maksimalt antal point ",{"$f":"SUM(Samletantaltildeltepoint[#Data])","v":90},20,20,50]
[null,"Elevens navn","Ydeevne","Karakter","%","Samlet antal point","Skriftlig opgave i klassen 1","Skriftlig opgave i klassen 2","Grov kladde til indtaling"]
[null,"Elev 1",{"$f":"Elevdatabase[[#This Row],[Samlet antal point]]","v":90},{"$f":"IFERROR(VLOOKUP(Elevdatabase[[#This Row],[%]],Karaktertabel[],2,TRUE),\"\")","v":"A+"},{"$f":"IFERROR(Elevdatabase[[#This Row],[Samlet antal point]]/Samletantalpoint,\"\")","v":1},{"$f":"IFERROR(SUM(Elevdatabase[[#This Row],[Skriftlig opgave i klassen 1]]:OFFSET(F5,,COUNTA(Samletantaltildeltepoint[]))),\"\")","v":90},20,20,50]
[null,"Elev 2",{"$f":"Elevdatabase[[#This Row],[Samlet antal point]]","v":60},{"$f":"IFERROR(VLOOKUP(Elevdatabase[[#This Row],[%]],Karaktertabel[],2,TRUE),\"\")","v":"D"},{"$f":"IFERROR(Elevdatabase[[#This Row],[Samlet antal point]]/Samletantalpoint,\"\")","v":0.66666666666666663},{"$f":"IFERROR(SUM(Elevdatabase[[#This Row],[Skriftlig opgave i klassen 1]]:OFFSET(F6,,COUNTA(Samletantaltildeltepoint[]))),\"\")","v":60},10,10,40]
[null,"Elev 3",{"$f":"Elevdatabase[[#This Row],[Samlet antal point]]","v":75},{"$f":"IFERROR(VLOOKUP(Elevdatabase[[#This Row],[%]],Karaktertabel[],2,TRUE),\"\")","v":"B"},{"$f":"IFERROR(Elevdatabase[[#This Row],[Samlet antal point]]/Samletantalpoint,\"\")","v":0.83333333333333337},{"$f":"IFERROR(SUM(Elevdatabase[[#This Row],[Skriftlig opgave i klassen 1]]:OFFSET(F7,,COUNTA(Samletantaltildeltepoint[]))),\"\")","v":75},20,15,40]
[null,"Gennemsnitskarakter/-point",null,{"$f":"IFERROR(VLOOKUP(Elevdatabase[[#Totals],[%]],Karaktertabel[],2,TRUE),\"\")","v":"B"},{"$f":"SUBTOTAL(101,Elevdatabase[%])","v":0.83333333333333337},{"$f":"SUBTOTAL(101,Elevdatabase[Samlet antal point])","v":75},{"$f":"SUBTOTAL(101,Elevdatabase[Skriftlig opgave i klassen 1])","v":16.666666666666668},{"$f":"SUBTOTAL(101,Elevdatabase[Skriftlig opgave i klassen 2])","v":15},{"$f":"SUBTOTAL(101,Elevdatabase[Grov kladde til indtaling])","v":43.333333333333336}]

{"sheet":"Elevresume","index":1,"n_rows":51,"n_cols":8,"rows_kept":51,"cut":false,"hidden":false,"merged":[[7,1,7,3],[11,1,11,2],[35,1,44,7],[0,0,0,4]]}
["Navn på skole"]
[null,{"$f":"Lærer","v":"Lærer"}]
[null,{"$f":"Klassenavn","v":"Klassenavn"}]
[null,"Status til dato"]
[null,"2011-09-22"]
[]
[null,"Elevens navn:"]
[null,"Elev 3"]
[]
[]
[null,"Niveau",null,"Karakter","Procent","Elevens point","Samlet antal point","Karakter"]
[null,{"$f":"IFERROR(_xlfn.RANK.EQ(VLOOKUP(B8,Elevdatabase[],5,FALSE),Elevdatabase[Samlet antal point]) & \" ud af \"&COUNTA(Elevdatabase[Elevens navn]) & \" Elever\",\"\")","v":"2 ud af 3 Elever"},null,{"$f":"IFERROR(VLOOKUP(Elevensnavn,Elevdatabase[],3,FALSE),\"\")","v":"B"},{"$f":"IFERROR(VLOOKUP(Elevensnavn,Elevdatabase[],4,FALSE),\"\")","v":0.83333333333333337},{"$f":"IFERROR(VLOOKUP(Elevensnavn,Elevdatabase[],5,FALSE),\"\")","v":75},{"$f":"Samletantalpoint","v":90},{"$f":"IFERROR(VLOOKUP(E12,Karaktertabel[],3,TRUE),\"\")","v":3}]
[]
[]
[]
[]
[]
[]
[]
[]
[]
[]
[]
[]
[]
[]
[]
[]
[]
[]
[]
[]
[]
[]
[null,"Kommentarer fra læreren"]
[]
[]
[]
[]
[]
[]
[]
[]
[]
[]
[]
[]
[null,"Forældres underskrift (hvis påkrævet)"]
[]
[]
[null,"X",null,null,null,"Dato:"]

{"sheet":"Bedømmelseskriterier","index":2,"n_rows":20,"n_cols":4,"rows_kept":20,"cut":false,"hidden":false,"merged":[[4,1,4,3],[2,1,2,4]]}
[null,"Beregn karakter"]
[]
[null,"Angiv de procentvise intervaller for hver karakter i tabellen herunder for at tilpasse skabelonen til karakterskalaen. "]
[]
[null,"Tabel over karakterer\n(Bruges til at beregne elevens karakterer på arket Karakterbog)"]
[null,"Resultat","Opnået karakter","Karakter"]
[null,0,"F",0]
[null,0.6,"D-",0.67]
[null,0.63,"D",1]
[null,0.67,"D+",1.33]
[null,0.7,"C-",1.67]
[null,0.73,"C",2]
[null,0.77,"C+",2.33]
[null,0.8,"B-",2.67]
[null,0.83,"B",3]
[null,0.87,"B+",3.33]
[null,0.9,"A-",3.67]
[null,0.93,"A",4]
[null,0.97,"A+",4]
[null,"Point og karakter skal angives i stigende rækkefølge."]